bitfinex/quotes_BTCUSD_20260125
["timestamp","ask_amount","ask_price","bid_price","bid_amount"]
[1769303609995,0.04050786,89227.0,89226.0,0.29826511]
[1769303610393,0.04050786,89227.0,89226.0,0.28367839]
[1769303610754,0.11186546,89231.0,89226.0,0.28367839]
[1769303610954,0.03,89230.0,89226.0,0.28367839]
[1769303612603,0.03,89230.0,89226.0,0.28353945]
[1769303614241,0.20216,89230.0,89226.0,0.28353945]
[1769303614422,0.03,89228.0,89226.0,0.28353945]
[1769303616295,0.03,89228.0,89226.0,0.26895277]
[1769303619501,0.03,89228.0,89226.0,0.25801276]
[1769303622243,0.03,89228.0,89226.0,0.24342607]
[1769303622644,0.04051884,89227.0,89226.0,0.24342607]
[1769303623417,0.04051884,89227.0,89221.0,0.31659729]
[1769303623695,0.03,89225.0,89224.0,0.31659729]
[1769303623871,0.04051884,89225.0,89224.0,0.31659729]
[1769303624333,0.04051884,89225.0,89224.0,0.30930395]
[1769303625273,0.03,89228.0,89224.0,0.31659729]
[1769303625705,0.03,89228.0,89224.0,0.31264357]
[1769303626087,0.11186546,89229.0,89224.0,0.32528998]
[1769303626268,0.11186546,89229.0,89225.0,0.31659729]
[1769303629537,0.11186546,89229.0,89225.0,0.31565727]
[1769303629743,0.03,89227.0,89225.0,0.31565727]
[1769303629941,0.14220016,89227.0,89225.0,0.31565727]
[1769303630148,0.14220016,89226.0,89225.0,0.31565727]
[1769303630545,0.03,89226.0,89225.0,0.31565727]
[1769303631352,0.03,89228.0,89225.0,0.31565727]
[1769303631554,0.14220016,89228.0,89225.0,0.31565727]
[1769303631723,0.11220016,89227.0,89225.0,0.31565727]
[1769303631919,0.17216,89230.0,89225.0,0.31565727]
[1769303632119,0.11219921,89229.0,89225.0,0.31565727]
[1769303632869,0.03,89230.0,89225.0,0.64094725]
[1769303633173,0.03,89230.0,89226.0,0.31659729]
[1769303636410,0.03,89230.0,89225.0,0.32528998]
[1769303636927,0.03,89230.0,89221.0,0.31659729]
[1769303637111,0.03,89230.0,89222.0,0.01988223]
[1769303637343,0.03,89228.0,89222.0,0.01988223]
[1769303637494,0.03,89226.0,89223.0,0.32528998]
[1769303637813,0.04051824,89225.0,89224.0,0.3364795]
[1769303638024,0.04051824,89225.0,89224.0,0.31659729]
[1769303639001,0.03,89230.0,89224.0,0.32528998]
[1769303639223,0.03,89230.0,89225.0,0.33649701]
[1769303639433,0.03,89230.0,89225.0,0.31659729]
[1769303640334,0.03,89230.0,89227.0,0.31659729]
[1769303640535,0.03,89230.0,89227.0,0.29788209]
[1769303640810,0.03,89230.0,89227.0,0.28290939]
[1769303641014,0.03,89230.0,89226.0,0.32528998]
[1769303641216,0.03,89230.0,89222.0,0.31659729]
[1769303641544,0.03,89230.0,89223.0,0.00171371]
[1769303642521,0.04823282,89230.0,89223.0,0.00171371]
[1769303644076,0.04823282,89230.0,89222.0,0.31659729]
[1769303644845,0.16041604,89230.0,89222.0,0.31659729]
[1769303647308,0.16041604,89230.0,89223.0,0.00174465]
[1769303650413,0.04823282,89230.0,89223.0,0.00174465]
[1769303650629,0.16040963,89230.0,89223.0,0.00174465]
[1769303651037,0.03,89228.0,89223.0,0.31694661]
[1769303651212,0.03,89226.0,89223.0,0.31520196]
[1769303651416,0.04051643,89225.0,89224.0,0.00062411]
[1769303652521,0.04051643,89225.0,89224.0,0.31299155]
[1769303653261,0.03551643,89225.0,89224.0,0.31299155]
[1769303654250,0.03,89229.0,89224.0,0.31299155]
[1769303654452,0.03,89229.0,89224.0,0.31046452]
[1769303654654,0.03,89229.0,89225.0,0.00062485]
[1769303654858,0.03,89223.0,89210.0,0.34415656]
[1769303655057,0.03,89223.0,89210.0,0.29931879]
[1769303655258,0.03,89223.0,89210.0,0.28810929]
[1769303655623,0.03,89223.0,89214.0,0.31101798]
[1769303655841,0.03,89222.0,89214.0,0.31299155]
[1769303656086,0.03,89222.0,89215.0,0.31101798]
[1769303656813,0.03,89229.0,89215.0,0.31101798]
[1769303661126,0.03,89229.0,89219.0,0.28810929]
[1769303661269,0.09563996,89230.0,89219.0,0.28810929]
[1769303661468,0.01885767,89229.0,89219.0,0.28810929]
[1769303661669,0.01885767,89229.0,89217.0,0.62400953]
[1769303665638,0.01885767,89229.0,89214.0,0.011209]
[1769303665639,0.01,89230.0,89218.0,0.65510709]
[1769303665968,0.01,89230.0,89218.0,0.62400953]
[1769303666155,0.01051482,89229.0,89218.0,0.62400953]
[1769303666331,0.01051482,89228.0,89218.0,0.62400953]
[1769303666537,0.04051482,89227.0,89218.0,0.62400953]
[1769303666719,0.03,89225.0,89218.0,0.62400953]
[1769303666920,0.01,89230.0,89219.0,0.0187669]
[1769303667347,0.01,89230.0,89220.0,0.28810929]
[1769303667550,0.01,89230.0,89221.0,0.01876675]
[1769303667747,0.03,89229.0,89220.0,0.28810929]
[1769303670354,0.03,89229.0,89221.0,0.01988014]
[1769303672397,0.03,89229.0,89222.0,0.02241599]
[1769303672942,0.03,89229.0,89219.0,0.28810929]
[1769303673136,0.0001068,89233.0,89219.0,0.28810929]
[1769303673137,0.03,89228.0,89219.0,0.28810929]
[1769303673358,0.0001068,89233.0,89220.0,0.01993358]
[1769303673571,0.0001068,89233.0,89218.0,0.91211882]
[1769303674087,0.0001068,89233.0,89218.0,0.62400953]
[1769303675785,0.03,89232.0,89218.0,0.62400953]
[1769303676994,0.03,89231.0,89218.0,0.62400953]
[1769303678867,0.03,89229.0,89218.0,0.62400953]
[1769303679074,0.03,89227.0,89218.0,0.62400953]
[1769303679283,0.03,89225.0,89218.0,0.62400953]
[1769303679492,0.03,89223.0,89216.0,0.63614391]
[1769303679672,0.03,89221.0,89215.0,0.06725324]
[1769303679895,0.01051401,89220.0,89216.0,0.3568999]
[1769303680127,0.01051401,89219.0,89218.0,0.3568999]
[1769303680328,0.01051401,89219.0,89218.0,0.63614391]
[1769303681090,0.0001068,89233.0,89218.0,0.63614391]
[1769303693048,0.03,89231.0,89218.0,0.63614391]
[1769303693244,0.03,89229.0,89218.0,0.63614391]
[1769303693441,0.03,89227.0,89218.0,0.63614391]
[1769303693672,0.03,89225.0,89218.0,0.63614391]
[1769303693850,0.03,89223.0,89215.0,0.27924401]
[1769303694028,0.0001068,89233.0,89218.0,0.3568999]
[1769303694029,0.03,89221.0,89218.0,0.3568999]
[1769303694235,0.01051596,89220.0,89218.0,0.63614391]
[1769303694438,0.00051596,89219.0,89218.0,0.63614391]
[1769303698729,0.09570746,89225.0,89218.0,0.63614391]
[1769303698952,0.0001068,89233.0,89218.0,0.63614391]
[1769303704980,0.0301068,89233.0,89218.0,0.27924401]
[1769303706158,0.03,89232.0,89218.0,0.27924401]
[1769303707129,0.03,89231.0,89218.0,0.27924401]
[1769303708062,0.03,89230.0,89218.0,0.27924401]
[1769303709226,0.03,89229.0,89218.0,0.27924401]
[1769303710187,0.03,89228.0,89218.0,0.27924401]
[1769303710714,0.03,89226.0,89218.0,0.27924401]
[1769303710888,0.03,89224.0,89218.0,0.27924401]
[1769303711108,0.03,89222.0,89218.0,0.62238943]
[1769303711310,0.03,89220.0,89218.0,0.62238943]
[1769303711460,0.03051804,89219.0,89218.0,0.62238943]
[1769303713887,0.03,89225.0,89218.0,0.62238943]
[1769303714080,0.14219331,89225.0,89218.0,0.62238943]
[1769303714314,0.03,89223.0,89218.0,0.62238943]
[1769303715314,0.03,89228.0,89218.0,0.62238943]
[1769303716426,0.03,89231.0,89218.0,0.62238943]
[1769303719114,0.03,89230.0,89218.0,0.62238943]
[1769303720139,0.03,89229.0,89218.0,0.62238943]
[1769303721215,0.03,89231.0,89218.0,0.62238943]
[1769303721429,0.14219072,89231.0,89218.0,0.62238943]
[1769303721628,0.03,89229.0,89218.0,0.62238943]
[1769303721812,0.14219072,89229.0,89218.0,0.62238943]
[1769303722017,0.03,89227.0,89218.0,0.62238943]
[1769303722265,0.14219072,89227.0,89218.0,0.62238943]
[1769303722474,0.03,89225.0,89218.0,0.62238943]
[1769303723533,0.03,89227.0,89218.0,0.62238943]
[1769303723746,0.14219072,89227.0,89218.0,0.62238943]
[1769303723941,0.03,89225.0,89218.0,0.62238943]
[1769303724136,0.14219072,89225.0,89218.0,0.62238943]
[1769303724366,0.03,89225.0,89218.0,0.62238943]
[1769303724956,0.03,89224.0,89218.0,0.62238943]
[1769303725828,0.0001068,89233.0,89218.0,0.62238943]
[1769303725829,0.03,89222.0,89218.0,0.62238943]
[1769303726024,0.03,89220.0,89218.0,0.62238943]
[1769303726360,0.0001068,89233.0,89218.0,0.62238943]
[1769303726959,0.11229453,89233.0,89218.0,0.62238943]
[1769303727160,0.11218773,89232.0,89218.0,0.62238943]
[1769303727383,0.03,89230.0,89218.0,0.62238943]
[1769303727544,0.14218773,89230.0,89218.0,0.62238943]
[1769303727753,0.03,89228.0,89218.0,0.62238943]
[1769303728691,0.03,89227.0,89218.0,0.62238943]
[1769303729651,0.0001068,89233.0,89218.0,0.62238943]
[1769303730053,0.03,89232.0,89218.0,0.62238943]
[1769303730727,0.14218773,89232.0,89218.0,0.62238943]
[1769303730928,0.0001068,89233.0,89218.0,0.62238943]
[1769303730929,0.03,89230.0,89218.0,0.62238943]
[1769303731094,0.14218773,89230.0,89218.0,0.62238943]
[1769303731294,0.03,89228.0,89218.0,0.62238943]
[1769303731492,0.14218773,89228.0,89218.0,0.62238943]
[1769303731728,0.03,89226.0,89218.0,0.62238943]
[1769303732610,0.03,89225.0,89218.0,0.62238943]
[1769303733727,0.03,89226.0,89218.0,0.62238943]
[1769303733930,0.14218773,89226.0,89218.0,0.62238943]
[1769303734081,0.03,89226.0,89218.0,0.62238943]
[1769303734833,0.03,89232.0,89218.0,0.62238943]
[1769303735134,0.14218989,89232.0,89218.0,0.62238943]
[1769303735373,0.03,89230.0,89218.0,0.62238943]
[1769303736463,0.0001068,89233.0,89218.0,0.62238943]
[1769303736464,0.03,89229.0,89218.0,0.62238943]
[1769303737792,0.03,89228.0,89218.0,0.62238943]
[1769303738316,0.03,89226.0,89218.0,0.62238943]
[1769303738520,0.03,89224.0,89218.0,0.62238943]
[1769303738721,0.03,89222.0,89218.0,0.62238943]
[1769303738969,0.03,89220.0,89218.0,0.62238943]
[1769303739170,0.0001068,89233.0,89218.0,0.62238943]
[1769303739375,0.11219563,89232.0,89218.0,0.62238943]
[1769303740289,0.03,89231.0,89219.0,0.01893647]
[1769303741273,0.03,89231.0,89220.0,0.28809691]
[1769303741476,0.03,89230.0,89221.0,0.303191]
[1769303741678,0.0001068,89233.0,89220.0,0.34413793]
[1769303741884,0.0001068,89233.0,89222.0,0.58905207]
[1769303742065,0.0001068,89233.0,89223.0,0.02083636]
[1769303747429,0.0001068,89233.0,89227.0,0.01120736]
[1769303747597,8.519e-05,89241.0,89228.0,0.01120724]
[1769303747793,8.519e-05,89241.0,89227.0,0.60025943]
[1769303748020,8.519e-05,89241.0,89227.0,0.58905207]
[1769303748419,0.03008519,89241.0,89230.0,0.28809691]
[1769303751181,0.03008519,89241.0,89224.0,0.06724641]
[1769303751182,0.03,89239.0,89224.0,0.06724641]
[1769303751379,0.03,89237.0,89227.0,0.28425475]
[1769303751606,0.03,89235.0,89227.0,0.28425475]
[1769303751805,0.03,89233.0,89227.0,0.28425475]
[1769303752007,0.01050442,89232.0,89227.0,0.58905207]
[1769303752201,0.00042613,89241.0,89227.0,0.58905207]
[1769303752202,0.00355045,89231.0,89227.0,0.58905207]
[1769303752400,0.00042613,89241.0,89227.0,0.58905207]
[1769303762143,0.14240832,89241.0,89227.0,0.58905207]
[1769303762881,0.03042613,89241.0,89227.0,0.58905207]
[1769303763060,0.14240843,89241.0,89227.0,0.58905207]
[1769303764163,0.03,89239.0,89227.0,0.58905207]
[1769303764339,0.03,89237.0,89227.0,0.58905207]
[1769303764525,0.03,89235.0,89227.0,0.58905207]
[1769303764727,0.03,89233.0,89227.0,0.58905207]
[1769303764947,0.03,89231.0,89227.0,0.5765197]
[1769303765148,0.03,89229.0,89222.0,0.27975297]
[1769303765368,0.03,89229.0,89225.0,0.29226495]
[1769303765578,0.03,89229.0,89227.0,0.57201792]
[1769303766148,0.00034094,89240.0,89227.0,0.57201792]
[1769303766497,0.01049988,89239.0,89227.0,0.57201792]
[1769303766701,0.01084082,89238.0,89227.0,0.57201792]
[1769303767017,0.01049988,89237.0,89227.0,0.57201792]
[1769303767165,0.01049988,89236.0,89227.0,0.57201792]
[1769303767494,0.01049988,89235.0,89227.0,0.57201792]
[1769303767821,0.01049988,89234.0,89227.0,0.57201792]
[1769303767950,0.01049988,89233.0,89227.0,0.57201792]
[1769303768150,0.01049988,89232.0,89223.0,0.29226495]
[1769303768363,0.01049988,89231.0,89225.0,0.57201792]
[1769303768564,0.01049988,89230.0,89220.0,0.29925282]
[1769303768783,0.00034094,89240.0,89224.0,0.29226495]
[1769303768987,0.01050161,89239.0,89225.0,0.57201792]
[1769303769214,0.01084255,89238.0,89225.0,0.57201792]
[1769303769375,0.01050161,89237.0,89225.0,0.57201792]
[1769303769583,0.01050161,89236.0,89225.0,0.57201792]
[1769303769929,0.01050161,89235.0,89225.0,0.57201792]
[1769303770124,0.01050161,89234.0,89225.0,0.57201792]
[1769303770298,0.01050161,89233.0,89225.0,0.57201792]
[1769303770500,0.01050161,89232.0,89225.0,0.57201792]
[1769303770687,0.01050161,89231.0,89225.0,0.57201792]
[1769303771025,0.01050161,89230.0,89222.0,0.27975297]
[1769303771183,0.01050161,89229.0,89224.0,0.27975297]
[1769303771383,0.01050161,89228.0,89227.0,0.29226495]
[1769303771582,0.00034094,89240.0,89227.0,0.57201792]
[1769303771824,0.01050532,89239.0,89227.0,0.57201792]
[1769303772025,0.01084626,89238.0,89227.0,0.57201792]
[1769303772226,0.01050532,89237.0,89227.0,0.57201792]
[1769303772402,0.01050532,89236.0,89227.0,0.57201792]
[1769303772600,0.01050532,89235.0,89227.0,0.57201792]
[1769303772917,0.01050532,89234.0,89227.0,0.57201792]
[1769303773087,0.01050532,89233.0,89227.0,0.57201792]
[1769303773435,0.01050532,89232.0,89228.0,0.29058808]
[1769303773601,0.01050532,89231.0,89228.0,0.29058808]
[1769303773804,0.01050532,89230.0,89228.0,0.29058808]
[1769303774053,0.01007919,89229.0,89228.0,0.29058808]
[1769303775614,0.13326954,89242.0,89228.0,0.29058808]
[1769303775756,0.13331748,89242.0,89228.0,0.29058808]
[1769303776396,0.03,89241.0,89228.0,0.29058808]
[1769303783825,4.794e-05,89242.0,89228.0,0.29058808]
[1769303784028,0.03,89240.0,89228.0,0.29058808]
[1769303784228,0.03,89240.0,89229.0,0.01921225]
[1769303784923,4.794e-05,89242.0,89229.0,0.01921225]
[1769303787641,0.04051571,89241.0,89229.0,0.01921225]
[1769303787836,0.03,89239.0,89229.0,0.01921225]
[1769303788063,0.03,89237.0,89229.0,0.01921225]
[1769303788236,0.03,89235.0,89229.0,0.01921225]
[1769303788437,0.03,89233.0,89229.0,0.55905164]
[1769303788627,0.03,89231.0,89229.0,0.55905164]
[1769303788821,4.794e-05,89242.0,89229.0,0.55905164]
[1769303788822,0.03,89230.0,89229.0,0.55905164]
[1769303789829,0.03,89240.0,89229.0,0.55905164]
[1769303790077,0.14217079,89240.0,89229.0,0.55905164]
[1769303790275,0.03,89238.0,89229.0,0.55905164]
[1769303791471,0.03,89237.0,89229.0,0.55905164]
[1769303792381,0.03,89236.0,89229.0,0.55905164]
[1769303792971,0.03,89236.0,89220.0,0.28819298]
[1769303793179,0.03,89236.0,89222.0,0.26396741]
[1769303793393,0.03,89236.0,89223.0,0.55900563]
[1769303793594,0.03,89235.0,89223.0,0.55900563]
[1769303794523,0.03,89236.0,89223.0,0.55900563]
[1769303795590,0.03,89235.0,89223.0,0.55900563]
[1769303796591,0.03,89238.0,89223.0,0.55900563]
[1769303796792,0.14217079,89238.0,89223.0,0.55900563]
[1769303797014,0.03,89236.0,89223.0,0.55900563]
[1769303798131,0.03,89235.0,89223.0,0.55900563]
[1769303798718,0.03,89235.0,89220.0,0.0001484]
[1769303798921,0.03,89234.0,89220.0,0.01953411]
[1769303799125,0.04120649,89234.0,89220.0,0.0001484]
[1769303799292,0.03,89234.0,89220.0,0.0001484]
[1769303799490,0.14217079,89234.0,89220.0,0.0001484]
[1769303799691,0.03,89232.0,89220.0,0.0001484]
[1769303799975,0.14217079,89232.0,89220.0,0.0001484]
[1769303800161,0.03,89230.0,89220.0,0.0001484]
[1769303800882,0.03,89228.0,89220.0,0.0001484]
[1769303801057,0.03,89226.0,89220.0,0.0001484]
[1769303801260,0.03,89224.0,89221.0,0.55900563]
[1769303801462,0.06723603,89238.0,89221.0,0.55900563]
[1769303801463,0.03,89222.0,89221.0,0.55900563]
[1769303801664,0.04051405,89222.0,89221.0,0.55900563]
[1769303801867,0.04051405,89222.0,89220.0,0.0001484]
[1769303802188,0.01120623,89236.0,89220.0,0.0001484]
[1769303802189,0.04051405,89221.0,89220.0,0.0001484]
[1769303814431,0.04050589,89221.0,89220.0,0.0001484]
[1769303819653,0.04050589,89221.0,89211.0,0.0001484]
[1769303819856,0.03,89219.0,89211.0,0.0001484]
[1769303820063,0.03,89217.0,89211.0,0.0001484]
[1769303820264,0.03,89215.0,89211.0,0.26411581]
[1769303820474,0.03,89215.0,89212.0,0.26396741]
[1769303821247,0.03,89225.0,89212.0,0.26396741]
[1769303821467,0.30522073,89226.0,89212.0,0.2640526]
[1769303822557,0.03,89225.0,89212.0,0.2640526]
[1769303824130,0.03,89225.0,89211.0,0.29518662]
[1769303824131,0.04,89212.0,89211.0,0.0001484]
[1769303824376,0.04,89212.0,89211.0,0.00026553]
[1769303824531,0.03,89212.0,89211.0,0.00026553]
[1769303826211,0.03,89215.0,89211.0,0.00026553]
[1769303828040,0.30129481,89215.0,89211.0,0.00026553]
[1769303829296,0.03,89213.0,89211.0,0.00026553]
[1769303830107,0.03,89213.0,89206.0,0.04227357]
[1769303830468,0.03,89213.0,89206.0,0.04232684]
[1769303832571,0.03,89212.0,89206.0,0.04232684]
[1769303833476,0.03,89210.0,89206.0,0.04232684]
[1769303833798,0.26387431,89219.0,89206.0,0.04232684]
[1769303833799,0.03,89208.0,89206.0,5.327e-05]
[1769303834090,0.03,89207.0,89206.0,5.327e-05]
[1769303836133,0.03,89212.0,89206.0,5.327e-05]
[1769303836332,0.03,89210.0,89206.0,5.327e-05]
[1769303836485,0.01121088,89213.0,89206.0,5.327e-05]
[1769303836486,0.03,89208.0,89206.0,5.327e-05]
[1769303837580,0.03,89207.0,89206.0,5.327e-05]
[1769303837783,0.03,89207.0,89193.0,0.0003484]
[1769303837784,0.28503205,89198.0,89193.0,0.0003484]
[1769303837995,0.03,89193.0,89188.0,0.0002]
[1769303838192,0.29387431,89189.0,89177.0,0.0002]
[1769303838400,0.04049566,89188.0,89177.0,0.0002]
[1769303838605,0.04498074,89188.0,89177.0,0.0002]
[1769303838938,0.03,89186.0,89177.0,0.0002]
[1769303839139,0.53027485,89187.0,89177.0,0.0002]
[1769303839140,0.04049566,89185.0,89177.0,0.0002]
[1769303839541,0.04498104,89185.0,89177.0,0.0002]
[1769303841453,0.00448538,89185.0,89177.0,0.0002]
[1769303841858,0.00448538,89185.0,89170.0,0.2882285]
[1769303842064,0.00448538,89185.0,89173.0,0.29082146]
[1769303846822,0.00448538,89185.0,89168.0,0.0002131]
[1769303846981,0.03,89183.0,89168.0,0.0002131]
[1769303847738,0.0412134,89179.0,89168.0,0.0002131]
[1769303848081,0.2882285,89180.0,89158.0,0.56347019]
[1769303848082,0.29640054,89177.0,89158.0,0.56347019]
[1769303848293,0.29640054,89175.0,89158.0,0.56347019]
[1769303848512,0.03,89173.0,89158.0,0.56347019]
[1769303848679,0.03,89173.0,89158.0,0.29082146]
[1769303848884,0.29640054,89173.0,89158.0,0.29082146]
[1769303849058,0.29640054,89173.0,89154.0,0.0002]
[1769303849252,0.03,89169.0,89153.0,0.27310103]
[1769303849454,0.03,89169.0,89153.0,0.28363775]
[1769303849696,0.03,89169.0,89154.0,0.01087661]
[1769303849909,0.03,89169.0,89154.0,0.01121654]
[1769303850112,0.03,89167.0,89154.0,0.01121654]
[1769303850268,0.03,89167.0,89153.0,0.28329782]
[1769303850467,0.03,89167.0,89156.0,0.01121629]
[1769303851505,0.03,89167.0,89157.0,0.01121616]
[1769303851766,0.03,89167.0,89156.0,0.01121629]
[1769303853412,0.03,89167.0,89157.0,0.05608068]
[1769303853753,0.03,89167.0,89158.0,0.01121604]
[1769303854677,0.03,89167.0,89156.0,0.01121629]
[1769303855071,0.03,89167.0,89155.0,0.06729852]
[1769303855450,0.03,89167.0,89156.0,0.01121629]
[1769303855861,0.03,89167.0,89155.0,0.01121642]
[1769303856131,0.03,89167.0,89154.0,0.01121654]
[1769303856316,0.03,89167.0,89153.0,0.28329782]
[1769303856516,0.03,89167.0,89154.0,0.01121654]
[1769303857079,0.03,89166.0,89155.0,0.01121642]
[1769303857307,0.06364735,89166.0,89155.0,0.06729848]
[1769303857709,0.03,89166.0,89156.0,0.06729766]
[1769303857947,0.03,89164.0,89156.0,0.06729766]
[1769303858503,0.03,89164.0,89153.0,0.27208115]
[1769303858717,0.03,89162.0,89153.0,0.27208115]
[1769303859343,0.03,89162.0,89153.0,0.28329782]
[1769303859542,0.03,89162.0,89154.0,0.01121654]
[1769303859773,0.03,89162.0,89153.0,0.28329782]
[1769303859950,0.03,89162.0,89154.0,0.0116918]
[1769303860113,0.03,89169.0,89154.0,0.0116918]
[1769303860315,0.03,89163.0,89161.0,0.01121566]
[1769303860546,0.26899517,89183.0,89161.0,0.25226165]
[1769303860759,0.26899517,89183.0,89159.0,0.01121591]
[1769303860760,0.03364735,89170.0,89163.0,0.27704268]
[1769303860985,0.19414887,89182.0,89159.0,0.01121591]
[1769303860986,0.18368312,89182.0,89165.0,0.52930433]
[1769303861189,0.01046579,89181.0,89165.0,0.52930433]
[1769303861485,0.21733047,89182.0,89165.0,0.52930433]
[1769303861486,0.03,89179.0,89165.0,0.52930433]
[1769303861686,0.03,89177.0,89166.0,0.25226165]
[1769303861845,0.03,89175.0,89166.0,0.25226165]
[1769303862045,0.03,89173.0,89166.0,0.25226165]
[1769303862252,0.03,89171.0,89168.0,0.25226165]
[1769303862467,0.04046579,89170.0,89169.0,0.52719486]
[1769303862669,0.07411314,89170.0,89169.0,0.52719486]
[1769303862886,0.07411314,89170.0,89169.0,0.51925001]
[1769303863204,0.07411314,89170.0,89169.0,0.49820265]
[1769303863354,0.07411314,89170.0,89169.0,0.49222071]
[1769303863559,0.07411314,89170.0,89169.0,0.47826075]
[1769303863759,0.07411314,89170.0,89169.0,0.47104716]
[1769303863998,0.07411314,89170.0,89169.0,0.46137337]
[1769303864197,0.07411314,89170.0,89169.0,0.4500867]
[1769303864503,0.04046579,89170.0,89169.0,0.44041191]
[1769303864949,0.04046579,89170.0,89160.0,0.29944429]
[1769303864950,0.03,89186.0,89168.0,0.01121478]
[1769303865152,0.03,89186.0,89172.0,0.27704268]
[1769303865444,0.03,89186.0,89171.0,0.0112144]
[1769303865445,0.03,89184.0,89175.0,0.25226165]
[1769303865779,0.03,89184.0,89176.0,0.25226165]
[1769303868540,0.03,89184.0,89176.0,0.2454649]
[1769303868937,0.0002143,89188.0,89176.0,0.2454649]
[1769303869301,0.03,89185.0,89176.0,0.2454649]
[1769303870360,0.03,89184.0,89176.0,0.2454649]
[1769303871427,0.0002143,89188.0,89176.0,0.2454649]
[1769303871632,0.03,89185.0,89176.0,0.2454649]
[1769303871797,0.14190916,89185.0,89176.0,0.2454649]
[1769303871996,0.03,89185.0,89176.0,0.2454649]
[1769303872311,0.1419089,89185.0,89176.0,0.2454649]
[1769303872511,0.03,89185.0,89176.0,0.2454649]
[1769303872934,0.14191844,89185.0,89176.0,0.2454649]
[1769303875657,0.03,89183.0,89176.0,0.2454649]
[1769303875836,0.14191844,89183.0,89176.0,0.2454649]
[1769303876061,0.03,89183.0,89176.0,0.2454649]
[1769303876622,0.03,89182.0,89176.0,0.2454649]
[1769303876857,0.03,89180.0,89178.0,0.25226165]
[1769303877040,0.04050529,89179.0,89178.0,0.51835922]
[1769303880578,0.04050529,89179.0,89178.0,0.24131654]
[1769303883030,0.04050529,89179.0,89173.0,0.27704268]
[1769303883353,0.01050529,89178.0,89173.0,0.27704268]
[1769303883644,0.01000529,89177.0,89174.0,0.26960309]
[1769303883834,0.0002143,89188.0,89174.0,0.26960309]
[1769303885037,0.0002143,89188.0,89174.0,0.26730178]
[1769303885246,0.0002143,89188.0,89174.0,0.26696193]
[1769303887847,0.0002143,89188.0,89174.0,0.27817596]
[1769303888325,0.0002143,89188.0,89174.0,0.33424585]
[1769303888470,0.0002143,89188.0,89174.0,0.26696193]
[1769303891784,0.16475596,89192.0,89174.0,0.26696193]
[1769303893231,0.03,89191.0,89174.0,0.26696193]
[1769303895572,0.03,89189.0,89174.0,0.26696193]
[1769303895843,0.03,89187.0,89174.0,0.26696193]
[1769303895983,0.03,89185.0,89174.0,0.26696193]
[1769303896193,0.03,89183.0,89174.0,0.26696193]
[1769303896380,0.03,89181.0,89174.0,0.26696193]
[1769303896602,0.03,89179.0,89175.0,0.52464122]
[1769303896766,0.03,89177.0,89175.0,0.5178445]
[1769303896968,0.04052311,89176.0,89175.0,0.5178445]
[1769303898229,0.03,89191.0,89175.0,0.5178445]
[1769303903734,0.14217022,89191.0,89175.0,0.51750465]
[1769303904962,0.10833364,89192.0,89175.0,0.51750465]
[1769303905152,0.39365987,89192.0,89175.0,0.51750465]
[1769303910275,0.01052331,89191.0,89175.0,0.51750465]
[1769303910453,0.01052331,89190.0,89175.0,0.51750465]
[1769303910654,0.03,89188.0,89175.0,0.51750465]
[1769303910972,0.03,89186.0,89175.0,0.51750465]
[1769303911172,0.03,89184.0,89175.0,0.51750465]
[1769303911484,0.03,89182.0,89175.0,0.51750465]
[1769303911775,0.03,89180.0,89174.0,0.52464122]
[1769303911975,0.03,89178.0,89177.0,0.05606826]
[1769303912133,0.01052331,89178.0,89177.0,0.52464122]
[1769303912336,0.53379781,89197.0,89178.0,0.52464122]
[1769303912746,0.17224,89198.0,89178.0,0.52464122]
[1769303912945,0.03,89197.0,89178.0,0.52464122]
[1769303913161,0.03,89195.0,89178.0,0.52464122]
[1769303913365,0.56870754,89195.0,89178.0,0.52464122]
[1769303915593,0.56870754,89195.0,89178.0,0.52430134]
[1769303916782,0.03,89193.0,89178.0,0.52430134]
[1769303918874,0.03,89193.0,89174.0,0.01121403]
[1769303919078,0.56870754,89193.0,89174.0,0.01121403]
[1769303919385,0.03,89191.0,89174.0,0.55007939]
[1769303922937,0.03,89191.0,89174.0,0.26211132]
[1769303923139,0.03,89191.0,89174.0,0.61736349]
[1769303923261,0.03,89191.0,89175.0,0.310396]
[1769303923466,0.03,89191.0,89175.0,0.55007939]
[1769303924442,0.03,89189.0,89175.0,0.55007939]
[1769303924646,0.03,89187.0,89175.0,0.55007939]
[1769303924813,0.03,89185.0,89175.0,0.55007939]
[1769303924994,0.03,89183.0,89175.0,0.55007939]
[1769303925221,0.03,89181.0,89175.0,0.55007939]
[1769303925433,0.03,89179.0,89175.0,0.55007939]
[1769303925629,0.00032415,89178.0,89176.0,0.2991821]
[1769303925845,0.03,89191.0,89177.0,0.25089729]
[1769303926059,0.03,89191.0,89177.0,0.55007939]
[1769303926262,0.03,89191.0,89178.0,0.2991821]
[1769303926588,0.03,89191.0,89179.0,0.02084463]
[1769303926793,0.03,89189.0,89178.0,0.2991821]
[1769303927002,0.03,89187.0,89178.0,0.2991821]
[1769303927145,0.03,89185.0,89178.0,0.2991821]
[1769303928054,0.03,89185.0,89179.0,0.01354779]
[1769303928253,0.03,89184.0,89179.0,0.01354779]
[1769303928455,0.03,89184.0,89179.0,0.56362718]
[1769303928660,0.03,89184.0,89179.0,0.55007939]
[1769303928860,0.03,89184.0,89180.0,0.01354763]
[1769303929503,0.03,89183.0,89180.0,0.01354763]
[1769303930848,0.03,89182.0,89180.0,0.01354763]
[1769303931804,0.03,89190.0,89180.0,0.01354763]
[1769303931940,0.03,89188.0,89179.0,0.55007939]
[1769303932288,0.03,89186.0,89179.0,0.55007939]
[1769303932489,0.03,89186.0,89180.0,0.01363389]
[1769303933712,0.03,89185.0,89180.0,0.01363389]
[1769303934057,0.03,89185.0,89179.0,0.55007939]
[1769303934717,0.03,89184.0,89179.0,0.55007939]
[1769303935076,0.14956327,89193.0,89179.0,0.55007939]
[1769303936000,0.03,89192.0,89179.0,0.55007939]
[1769303937626,0.03,89194.0,89180.0,0.00846824]
[1769303937849,0.03,89192.0,89182.0,0.25089729]
[1769303937999,0.03,89190.0,89183.0,0.25089729]
[1769303938200,0.03,89188.0,89185.0,0.25089729]